lending/lending_fUSD_20240120
["ID","MTS","AMOUNT","RATE_DAILY","PERIOD"]
[312299440,1705764637826,-95.36983124,0.00021917,2]
[312299441,1705764637836,-162.65,0.00021918,2]
[312299442,1705764637845,-73.2351327,0.00021926,10]
[312299443,1705764637856,-123.4348673,0.00021926,10]
[312299444,1705764637865,-250.0,0.00021937,2]
[312299445,1705764637875,-640.0,0.00021956,2]
[312299446,1705764637885,-175.03,0.00022066,2]
[312299447,1705764637894,-183.75,0.00022245,2]
[312299448,1705764637903,-499.99,0.00022286,2]
[312299449,1705764637912,-161.32,0.00022304,2]
[312299450,1705764637921,-175.03,0.00022641,2]
[312299451,1705764637930,-1291.4451347,0.00022899,2]
[312299452,1705764637943,-747.5749653,0.00022899,2]
[312299453,1705764637953,-8350.2915,0.00022899,2]
[312299454,1705764637963,-242.1496,0.00022899,2]
[312299455,1705764637973,-1996.15028996,0.000229,2]
[312299456,1705764637982,-154.68041713,0.000229,2]
[312299457,1705764637991,-565.15069614,0.000229,2]
[312299458,1705764638000,-698.99521549,0.00022902,2]
[312299459,1705764638010,-698.99521549,0.00022903,2]
[312299460,1705764638019,-479.16309949,0.00022903,2]
[312299461,1705764638028,-565.15069613,0.00022903,2]
[312299462,1705764638038,-698.99521549,0.00022904,2]
[312299463,1705764638047,-698.99521549,0.00022905,2]
[312299464,1705764638056,-698.99521549,0.00022906,2]
[312299465,1705764638066,-479.16309949,0.00022906,2]
[312299466,1705764638075,-565.15069613,0.00022906,2]
[312299467,1705764638084,-1996.1502899,0.00022912,2]
[312299468,1705764638094,-1996.1502899,0.00022924,2]
[312299469,1705764638103,-1996.1502899,0.00022935,2]
[312299470,1705764638112,-1996.1502899,0.00022947,2]
[312299471,1705764638121,-1996.1502899,0.00022959,2]
[312299472,1705764638130,-1996.1502899,0.00022971,2]
[312299473,1705764638139,-1996.1502899,0.00022983,2]
[312299474,1705764638148,-1996.1502899,0.00022995,2]
[312299475,1705764638157,-1320.31079586,0.00022997,2]
[312299476,1705764638166,-940.65228731,0.00022997,2]
[312299477,1705764638178,-2651.69571256,0.00022997,2]
[312299478,1705764638187,-2754.6378539,0.00022997,2]
[312299479,1705764638198,-7784.1727728,0.00022997,2]
[312299480,1705764638207,-527.73969193,0.00022997,2]
[312299482,1705764638217,-599.27979208,0.00022998,2]
[312299484,1705764638226,-302.01136108,0.00022998,2]
[312299486,1705764638235,-155.0,0.00022998,2]
[312299488,1705764638245,-24652.05087667,0.00022998,2]
[312299490,1705764638255,-30495.45220814,0.00022999,2]
[312299491,1705764638265,-308.22134209,0.00022999,10]
[312299493,1705764638274,-308.22134209,0.00022999,10]
[312299495,1705764638283,-308.22134209,0.00022999,10]
[312299497,1705764638293,-331263.63089998,0.00022999,2]
[312299499,1705764638302,-308.22134209,0.00022999,10]
[312299501,1705764638311,-308.22134209,0.00022999,10]
[312299504,1705764638320,-308.22134209,0.00022999,10]
[312299506,1705764638329,-308.22134209,0.00022999,10]
[312299508,1705764638338,-341.87198641,0.00022999,10]
[312299511,1705764638347,-341.87198641,0.00022999,10]
[312299514,1705764638356,-260.28930573,0.00022999,2]
[312299516,1705764638365,-237.24050309,0.00022999,2]
[312299518,1705764638375,-260.28930573,0.00022999,2]
[312299520,1705764638384,-237.24050309,0.00022999,2]
[312299522,1705764638393,-260.28930573,0.00022999,2]
[312299524,1705764638401,-237.24050309,0.00022999,2]
[312299526,1705764638410,-260.28930573,0.00022999,2]
[312299528,1705764638419,-237.24050309,0.00022999,2]
[312299530,1705764638428,-260.28930573,0.00022999,2]
[312299532,1705764638437,-237.24050309,0.00022999,2]
[312299533,1705764638447,-260.28930573,0.00022999,2]
[312299535,1705764638456,-237.24050309,0.00022999,2]
[312299537,1705764638465,-260.28930573,0.00022999,2]
[312299539,1705764638474,-237.24050309,0.00022999,2]
[312299541,1705764638483,-260.28930573,0.00022999,2]
[312299543,1705764638492,-237.24050309,0.00022999,2]
[312299545,1705764638501,-260.28930573,0.00022999,2]
[312299548,1705764638511,-237.24050309,0.00022999,2]
[312299549,1705764638520,-260.28930573,0.00022999,2]
[312299551,1705764638529,-237.24050309,0.00022999,2]
[312299553,1705764638537,-260.28930573,0.00022999,2]
[312299555,1705764638546,-237.24050309,0.00022999,2]
[312299557,1705764638555,-260.28930573,0.00022999,2]
[312299559,1705764638564,-237.24050309,0.00022999,2]
[312299561,1705764638573,-260.28930573,0.00022999,2]
[312299563,1705764638582,-237.24050309,0.00022999,2]
[312299565,1705764638591,-260.28930573,0.00022999,2]
[312299567,1705764638600,-237.24050309,0.00022999,2]
[312299569,1705764638609,-198.28764475,0.00023,2]
[312299571,1705764638618,-509779.63244585,0.00023,3]
[312299573,1705764638627,-6787353.95380938,0.00023,2]
[312299576,1705764638640,-515.13167102,0.00023,2]
[312299755,1705764640405,-962.98101886,0.00023,2]
[312300005,1705764642832,-907.91825439,0.00023,2]
[312300013,1705764642892,-253.87928468,0.00023,2]
[312300025,1705764643004,-308148.91815453,0.00023,2]
[312300027,1705764643013,-112543.86631174,0.00023,2]
[312300030,1705764643026,-6246.50973598,0.00023,2]
[312300035,1705764643062,-796.803996,0.00023,2]
[312300372,1705764645951,-371.24785999,0.00023,2]
[312300590,1705765835290,-1041.72732894,0.00019982,2]
[312300591,1705765835300,-524.01683029,0.00019982,2]
[312300592,1705765835310,-165.37,0.00019983,2]
[312300593,1705765835319,-376.92038621,0.00021847,2]
[312300594,1705765835329,-160.52,0.00021874,2]
[312300595,1705765835339,-200.0,0.00021885,2]
[312300596,1705765835348,-165.76,0.000219,2]
[312300597,1705765835357,-288.0,0.00021903,2]
[312300598,1705765835367,-250.0,0.00021918,2]
[312300599,1705765835377,-712.0,0.00021969,2]
[312300600,1705765835387,-175.03,0.00022062,2]
[312300601,1705765835397,-165.37,0.00022246,2]
[312300602,1705765835406,-161.55,0.00022305,2]
[312300603,1705765835416,-173.51,0.00022305,2]
[312300604,1705765835426,-18194.9167,0.000228,2]
[312300605,1705765835435,-500.0,0.0002288,2]
[312300606,1705765835444,-9148.3493,0.0002288,2]
[312300607,1705765835453,-178.39091958,0.00022886,2]
[312300608,1705765835463,-368.32209368,0.0002289,2]
[312300609,1705765835472,-368.32209368,0.00022892,2]
[312300610,1705765835481,-178.39091956,0.00022893,2]
[312300611,1705765835491,-368.32209368,0.00022894,2]
[312300613,1705765835501,-368.32209368,0.00022896,2]
[312300615,1705765835510,-784.38578735,0.00022898,2]
[312300618,1705765835520,-368.32209368,0.00022898,2]
[312300619,1705765835529,-1568.60687079,0.00022898,2]
[312300621,1705765835539,-289.53548039,0.00022898,2]
[312300623,1705765835548,-55141.7509,0.00022898,2]
[312300625,1705765835558,-1830.6375,0.00022898,2]
[312300628,1705765835569,-1000.0,0.00022898,2]
[312300631,1705765835578,-1000.0,0.00022898,2]
[312300634,1705765835588,-5000.0,0.00022898,2]
[312300636,1705765835597,-784.38578734,0.00022898,2]
[312300638,1705765835606,-784.38578734,0.00022898,2]
[312300640,1705765835616,-784.38578734,0.00022899,2]
[312300642,1705765835626,-784.38578734,0.00022899,2]
[312300644,1705765835635,-784.38578734,0.00022899,2]
[312300646,1705765835645,-178.39091956,0.00022899,2]
[312300648,1705765835655,-1568.60687079,0.00022899,2]
[312300650,1705765835664,-289.53548037,0.00022899,2]
[312300652,1705765835674,-218.31179648,0.00022899,2]
[312300655,1705765835684,-784.38578734,0.00022899,2]
[312300657,1705765835693,-784.38578734,0.00022899,2]
[312300658,1705765835703,-784.38578734,0.00022899,2]
[312300660,1705765835712,-784.38578734,0.000229,2]
[312300662,1705765835722,-784.38578734,0.000229,2]
[312300664,1705765835731,-500.0,0.000229,2]
[312300666,1705765835741,-784.38578734,0.000229,2]
[312300668,1705765835750,-368.32209368,0.000229,2]
[312300670,1705765835760,-157.68369033,0.000229,2]
[312300672,1705765835768,-1568.60687079,0.000229,2]
[312300674,1705765835778,-289.53548037,0.000229,2]
[312300676,1705765835788,-800.0,0.00022959,2]
[312300679,1705765835797,-178.8608985,0.0002297,2]
[312300681,1705765835806,-168.93561227,0.00022978,2]
[312300682,1705765835816,-626.50019407,0.00022979,2]
[312300684,1705765835825,-641.51340671,0.00022979,2]
[312300686,1705765835835,-110776.26542666,0.0002298,2]
[312300689,1705765835848,-943.93187355,0.0002298,2]
[312300691,1705765835859,-481.13236969,0.0002298,2]
[312300693,1705765835870,-407.53,0.0002298,2]
[312300696,1705765835881,-973.32883742,0.0002298,2]
[312300698,1705765835893,-2805.78287957,0.0002298,2]
[312300700,1705765835904,-333832.38768606,0.0002298,2]
[312300702,1705765835913,-14795.0,0.00022986,2]
[312300704,1705765835922,-155.56428189,0.00022996,2]
[312300706,1705765835931,-155.49010944,0.00022996,2]
[312300708,1705765835941,-155.0,0.00022996,2]
[312300710,1705765835949,-155.132852,0.00022996,2]
[312300712,1705765835959,-208.152724,0.00022996,2]
[312300714,1705765835968,-672.82527924,0.00022996,2]
[312300716,1705765835977,-170.80943195,0.00022996,2]
[312300718,1705765835987,-386.26961565,0.00022996,2]
[312300720,1705765835997,-156.81769853,0.00022996,2]
[312300722,1705765836006,-157.38179978,0.00022996,2]
[312300724,1705765836015,-163.63015791,0.00022996,2]
[312300726,1705765836025,-599.79806811,0.00022996,2]
[312300728,1705765836035,-155.47264453,0.00022996,2]
[312300730,1705765836044,-156.43515152,0.00022996,2]
[312300732,1705765836053,-156.03435903,0.00022996,2]
[312300734,1705765836063,-156.97349171,0.00022996,2]
[312300736,1705765836072,-528.57068135,0.00022996,2]
[312300738,1705765836082,-20825.66704946,0.00022996,2]
[312300740,1705765836092,-166.42517815,0.00022996,2]
[312300742,1705765836101,-250.02290447,0.00022996,2]
[312300744,1705765836110,-155.9095125,0.00022996,2]
[312300746,1705765836120,-244.22314293,0.00022996,2]
[312300748,1705765836130,-2131.66263178,0.00022996,2]
[312300750,1705765836140,-242.32825192,0.00022996,2]
[312300752,1705765836149,-234.85086633,0.00022996,2]
[312300754,1705765836158,-155.42252281,0.00022996,2]
[312300756,1705765836168,-156.16142916,0.00022996,2]
[312300758,1705765836178,-178.74270135,0.00022996,2]
[312300760,1705765836188,-4262.60866632,0.00022996,2]
[312300762,1705765836198,-235.51079248,0.00022996,2]
[312300764,1705765836208,-269.72340834,0.00022996,2]
[312300767,1705765836218,-254.7545,0.00022996,2]
[312300769,1705765836227,-691.64691173,0.00022996,2]
[312300771,1705765836238,-229.86869063,0.00022996,2]
[312300773,1705765836247,-2894.68220287,0.00022996,2]
[312300774,1705765836256,-156.01865624,0.00022996,2]
[312300777,1705765836265,-311.59150887,0.00022996,2]
[312300779,1705765836276,-236.78378278,0.00022996,2]
[312300781,1705765836285,-271.34237792,0.00022996,2]
[312300783,1705765836295,-155.50823787,0.00022996,2]
[312300785,1705765836305,-1970.50192539,0.00022996,2]
[312300786,1705765836314,-155.20464114,0.00022996,2]
[312300788,1705765836324,-156.98063128,0.00022996,2]
[312300790,1705765836333,-156.40316727,0.00022996,2]
[312300792,1705765836343,-196.155894,0.00022996,2]
[312300794,1705765836352,-195.27634119,0.00022996,2]
[312300796,1705765836361,-196.91428267,0.00022996,2]
[312300798,1705765836371,-4381.03266012,0.00022996,2]
[312300801,1705765836381,-385.45093028,0.00022996,2]
[312300803,1705765836390,-239.38692458,0.00022996,2]
[312300804,1705765836400,-537.38418015,0.00022996,2]
[312300807,1705765836410,-156.68200812,0.00022997,2]
[312300808,1705765836420,-397.21856661,0.00022997,2]
[312300810,1705765836429,-371.98608374,0.00022997,2]
[312300812,1705765836439,-281.48515106,0.00022997,2]
[312300814,1705765836448,-2511.68241284,0.00022997,2]
[312300816,1705765836457,-33861.99470816,0.00022998,2]
[312300819,1705765836469,-311.44051922,0.00022998,2]
[312300821,1705765836481,-590.0394705,0.00022998,2]
[312300823,1705765836492,-818.99,0.00022998,2]
[312300824,1705765836504,-420223.05856404,0.00022998,2]
[312300825,1705765836515,-1050.64516846,0.00022998,2]
[312300826,1705765836526,-130953.44654919,0.00022998,2]
[312300827,1705765836537,-250.0,0.00022998,2]
[312300828,1705765836558,-358.1422689,0.00022998,2]
[312300829,1705765836570,-10880.29459186,0.00022998,2]
[312300830,1705765836581,-865.14657609,0.00022998,2]
[312300831,1705765836592,-2431.44335424,0.00022998,2]
[312300832,1705765836603,-1498.83714,0.00022998,2]
[312300833,1705765836615,-278.60878409,0.00022998,2]
[312300835,1705765836629,-3698.8629852,0.00022998,2]
[312300907,1705765837979,-416.23994707,0.000229,6]
[312300908,1705765837988,-11120.69451133,0.00022998,2]
[312300910,1705765838038,-408351.9450384,0.00022998,2]
[312300911,1705765838047,-2191.20432098,0.00022998,2]
[312300912,1705765838057,-308.22134209,0.00022998,10]
[312300913,1705765838065,-1000.0,0.00022998,5]
[312300914,1705765838076,-536833.79532852,0.00022999,3]
[312300915,1705765838085,-937.92770111,0.00022999,2]
[312300916,1705765838094,-505905.04796851,0.00022999,2]
[312300917,1705765838103,-1000.0,0.00022999,5]
[312300918,1705765838112,-826.31972725,0.00022999,5]
[312300919,1705765838122,-172.93804872,0.00022999,2]
[312300920,1705765838131,-172.93804872,0.00022999,2]
[312300921,1705765838140,-157.95632701,0.00022999,2]
[312300922,1705765838149,-172.93804872,0.00022999,2]
[312300923,1705765838158,-157.95632701,0.00022999,2]
[312300924,1705765838167,-172.93804872,0.00022999,2]
[312300925,1705765838176,-157.95632701,0.00022999,2]
[312300926,1705765838185,-172.93804872,0.00022999,2]
[312300927,1705765838195,-157.95632701,0.00022999,2]
[312300928,1705765838204,-172.93804872,0.00022999,2]
[312300929,1705765838213,-157.95632701,0.00022999,2]
[312300930,1705765838223,-172.93804872,0.00022999,2]
[312300931,1705765838232,-157.95632701,0.00022999,2]
[312300932,1705765838241,-172.93804872,0.00022999,2]
[312300933,1705765838250,-157.95632701,0.00022999,2]
[312300934,1705765838259,-172.93804872,0.00022999,2]
[312300935,1705765838268,-157.95632701,0.00022999,2]
[312300936,1705765838278,-157.95632701,0.00022999,2]
[312300937,1705765838287,-198.28764474,0.00023,2]
[312300938,1705765838296,-551236.80691558,0.00023,2]
[312300939,1705765838308,-1505.52984001,0.00023,2]
[312300940,1705765838319,-2492.33509942,0.00023,2]
[312300941,1705765838330,-1002.07127916,0.00023,2]
[312300942,1705765838341,-6938.46057468,0.00023,2]
[312300943,1705765838353,-15332.54004872,0.00023,2]
[312300944,1705765838372,-133242.65219413,0.00023,2]
[312300945,1705765838383,-17346.97063968,0.00023,2]
[312300946,1705765838395,-4809.31574473,0.00023,2]
[312300947,1705765838421,-1481.07984364,0.00023,2]
[312300948,1705765838433,-1038.57916476,0.00023,2]
[312300949,1705765838444,-12053.7724938,0.00023,2]
[312300950,1705765838456,-257.60914271,0.00023,2]
[312300952,1705765838468,-13202.63496229,0.00023,2]
[312300954,1705765838479,-14662.20450551,0.00023,2]
[312300956,1705765838490,-263.40803857,0.00023,2]
[312300958,1705765838502,-3347.12404594,0.00023,2]
[312300960,1705765838513,-307.48492604,0.00023,2]
[312300962,1705765838525,-22400.0,0.00023,2]
[312300964,1705765838538,-1188.00499915,0.00023,2]
[312300967,1705765838550,-4809.3006,0.00023,2]
[312300969,1705765838566,-1450.31253044,0.00023,2]
[312301168,1705765840509,-218.31179648,0.000229,2]
[312301170,1705765840519,-4262.71238562,0.00023,2]
[312301177,1705765840573,-650.0,0.00023,2]
[312301179,1705765840584,-411.58900052,0.00023,2]
[312301185,1705765840629,-595.6030002,0.00023,2]
[312301188,1705765840644,-797.95569169,0.00023,2]
[312301190,1705765840655,-784.32556892,0.00023,2]
[312301195,1705765840693,-10175.2675133,0.00023,2]
[312301197,1705765840704,-1616.14996358,0.00023,2]
[312301199,1705765840715,-3365.74993072,0.00023,2]
[312301202,1705765840727,-785.15857409,0.00023,2]
[312301204,1705765840737,-681.02717481,0.00023,2]
[312301273,1705765841374,-158715.27791365,0.00023,2]
[312301275,1705765841390,-585.18103821,0.00023,2]
[312301278,1705765841402,-2032.5,0.00023,2]
[312301280,1705765841413,-754.90961272,0.00023,2]
[312301282,1705765841425,-1622.22052362,0.00023,2]
[312301285,1705765841446,-4432.26839026,0.00023,2]
[312301288,1705765841458,-3986.2815106,0.00023,2]
[312301290,1705765841470,-12915.68685511,0.00023,2]
[312301292,1705765841481,-32536.99391018,0.00023,2]
[312301294,1705765841493,-21774.87494968,0.00023,2]
[312301297,1705765841504,-489.90736945,0.00023,2]
[312301299,1705765841516,-4922.14837801,0.00023,2]
[312301626,1705765844520,-218.31179648,0.000229,2]
[312301628,1705765844530,-14424.68502743,0.00023,2]
[312301630,1705765844543,-13189.1974179,0.00023,2]
[312301635,1705765844582,-511.680005,0.00023,2]
[312301638,1705765844593,-2443.52951912,0.00023,2]
[312301640,1705765844605,-285.32172466,0.00023,2]
[312301655,1705765844832,-1282.89966607,0.00023,2]
[312301657,1705765844844,-324.50393721,0.00023,2]
[312301660,1705765844855,-341.04,0.00023,2]
[312301662,1705765844865,-420.47620801,0.00023,2]
[312301664,1705765844880,-1289785.42700361,0.00023,2]
[312301667,1705765844891,-801258.09146202,0.00023,2]
[312301988,1705765847632,-5401729.33425334,0.00023,2]
[312301989,1705765847641,-200.0,0.00023,2]
[312301990,1705765847652,-11768.90669223,0.0002313,2]
[312301991,1705765847661,-200.89,0.00023265,2]
[312301992,1705765847670,-202.00142958,0.00023288,4]
[312301993,1705765847680,-485.48345125,0.00023288,2]
[312301995,1705765847690,-500.0,0.00023288,2]
[312301996,1705765847701,-228.8335204,0.00023288,2]
[312301997,1705765847711,-500.0,0.00023288,2]
[312301998,1705765847721,-500.0,0.00023288,2]
[312301999,1705765847730,-241.21029605,0.00023288,2]
[312302000,1705765847740,-161.55,0.00023643,2]
[312302001,1705765847751,-160.52,0.00023929,2]
[312302002,1705765847761,-14825.054847,0.00024,2]
[312302003,1705765847770,-157.68369017,0.00024235,2]
[312302004,1705765847780,-66056.96095636,0.000245,2]
[312302005,1705765847789,-12294.16339703,0.000245,2]
[312302006,1705765847799,-165.37,0.0002451,2]
[312302007,1705765847808,-165.76,0.00024528,2]
[312302008,1705765847817,-288.0,0.00024641,2]
[312302009,1705765847827,-250.0,0.00024658,2]
[312302010,1705765847836,-712.0,0.00024715,2]
[312302011,1705765847845,-150.0,0.000248,2]
[312302012,1705765847855,-173.50760882,0.00024837,3]
[312302013,1705765847864,-161.55,0.00024982,2]
[312302014,1705765847874,-167.43304946,0.00025,2]
[312302015,1705765847883,-202.08717836,0.00025,2]
[312302016,1705765847892,-303.55478187,0.00025,2]
[312302017,1705765847901,-933.94016922,0.00025,2]
[312302018,1705765847911,-1584.56156338,0.00025,2]
[312302019,1705765847920,-350.0,0.00025,3]
[312302020,1705765847930,-6513.04280125,0.00025478,2]
[312302021,1705765847941,-3256.52140063,0.00025498,2]
[312302022,1705765847951,-30194.2413025,0.00025498,2]
[312302023,1705765847961,-67679.80073711,0.00025498,2]
[312302024,1705765847971,-10756.77356085,0.00025498,2]
[312302025,1705765847980,-8861.9762346,0.00025498,2]
[312302026,1705765847989,-157.68369017,0.00025571,2]
[312302027,1705765847999,-160.52,0.00025984,2]
[312302028,1705765848008,-7362.55,0.00026575,2]
[312302029,1705765848018,-165.37,0.00026774,2]
[312302030,1705765848028,-157.68369017,0.00026908,2]
[312302031,1705765848037,-4909.11234598,0.00026928,2]
[312302032,1705765848047,-400.0,0.00027,3]
[312302033,1705765848057,-1250.0,0.00027171,2]
[312302034,1705765848066,-213.673,0.00027171,2]
[312302035,1705765848076,-150.0,0.00027171,2]
[312302036,1705765848086,-215.0,0.00027171,2]
[312302037,1705765848095,-152.0,0.00027171,2]
[312302038,1705765848105,-153.28,0.00027171,2]
[312302039,1705765848115,-153.0,0.00027171,2]
[312302040,1705765848125,-200.0,0.00027171,2]
[312302041,1705765848135,-239.567,0.00027171,2]
[312302042,1705765848145,-223.973,0.00027171,2]
[312302043,1705765848155,-153.303,0.00027171,2]
[312302044,1705765848165,-3113.0,0.000272,2]
[312302045,1705765848175,-23614.0,0.000272,2]
[312302046,1705765848184,-288.0,0.00027379,2]
[312302047,1705765848194,-1000.0,0.00027397,2]
[312302048,1705765848203,-159.89,0.00027397,2]
[312302049,1705765848212,-264.88,0.00027397,2]
[312302050,1705765848221,-220.82,0.00027397,2]
[312302051,1705765848231,-245.174449,0.00027397,7]
[312302052,1705765848241,-165.76,0.00027397,2]
[312302053,1705765848250,-159.82983,0.00027397,7]
[312302054,1705765848260,-238.995721,0.00027397,7]
[312302055,1705765848269,-161.973432,0.00027397,7]
[312302057,1705765848279,-712.0,0.00027461,2]
[312302059,1705765848288,-192.48,0.00027468,2]
[312302061,1705765848297,-3000.0,0.00027548,2]
[312302063,1705765848307,-322.95454985,0.00027548,2]
[312302065,1705765848316,-689.05942203,0.00028,2]
[312302067,1705765848325,-203.12390135,0.00028,2]
[312302069,1705765848334,-160.52,0.00028039,2]
[312302071,1705765848344,-157.68369017,0.00028245,2]
[312302073,1705765848353,-2272.65401895,0.000285,2]
[312302075,1705765848362,-209.0,0.00028715,2]
[312302077,1705765848371,-1000.0,0.00028767,2]
[312302079,1705765848381,-33142.113904,0.000288,2]
[312302080,1705765848391,-201.13102968,0.00028996,2]
[312302081,1705765848401,-158.67264273,0.00028996,2]
[312302082,1705765848411,-1279.03077908,0.00028996,2]
[312302084,1705765848420,-431.53216335,0.00028997,2]
[312302086,1705765848430,-944.36007763,0.00028997,2]
[312302088,1705765848439,-150.01,0.00028997,2]
[312302090,1705765848448,-3297.48423607,0.00028997,2]
[312302092,1705765848458,-637.34463505,0.00028998,2]
[312302094,1705765848467,-200.0,0.00028998,2]
[312302096,1705765848476,-623.77424681,0.00028998,2]
[312302098,1705765848486,-155.2215676,0.00028998,2]
[312302099,1705765848495,-509.0018593,0.00028998,2]
[312302100,1705765848505,-58000.0,0.00029,2]
[312302101,1705765848514,-450.0,0.00029,3]
[312302102,1705765848524,-529.829254,0.00029,10]
[312302103,1705765848534,-165.37,0.00029038,2]
[312302104,1705765848543,-153.0,0.000291,2]
[312302105,1705765848553,-1688.0,0.00029173,5]
[312302106,1705765848562,-264.88,0.00029416,2]
[312302107,1705765848574,-221.11221235,0.000295,3]
[312302108,1705765848584,-157.68369017,0.00029581,2]
[312302109,1705765848594,-58000.0,0.00029589,3]
[312302110,1705765848603,-731.13762758,0.000298,2]
[312302111,1705765848614,-175.56419383,0.000298,2]
[312302112,1705765848622,-364593.22001669,0.0002998,2]
[312302113,1705765848632,-50057.452738,0.00029999,2]
[312302114,1705765848642,-172.93804872,0.00029999,2]
[312302115,1705765848651,-157.95632701,0.00029999,2]
[312302116,1705765848661,-9641.46795832,0.0003,2]
[312302117,1705765848670,-155.0,0.0003,2]
[312302118,1705765848682,-582.7666979,0.0003,2]
[312302119,1705765848691,-706.0792161,0.0003,2]
[312302120,1705765848700,-600.37207933,0.0003,4]
[312302121,1705765848709,-155.0,0.0003,2]
[312302122,1705765848719,-150.0,0.0003,7]
[312302123,1705765848728,-643177.27900019,0.0003,2]
[312302124,1705765848737,-2000.0,0.0003,14]
[312302125,1705765848746,-3000.0,0.0003,2]
[312302126,1705765848755,-160.52,0.00030094,2]
[312302127,1705765848765,-251.0,0.000301,2]
[312302128,1705765848774,-288.0,0.00030117,2]
[312302129,1705765848783,-1000.0,0.00030136,2]
[312302130,1705765848793,-153.84,0.00030137,2]
[312302131,1705765848802,-151.45,0.00030137,2]
[312302132,1705765848812,-153.0,0.000302,2]
[312302133,1705765848821,-712.0,0.00030207,2]
[312302134,1705765848830,-152.10519193,0.00030501,2]
[312302135,1705765848840,-192.48,0.00030764,2]
[312302136,1705765848849,-157.68369017,0.00030918,2]
[312302137,1705765848857,-153.84,0.0003105,2]
[312302138,1705765848867,-153.0,0.000313,2]
[312302139,1705765849029,-165.37,0.00031302,2]
[312302140,1705765849038,-7999.99,0.00031435,14]
[312302141,1705765849048,-264.88,0.00031435,2]
[312302142,1705765849057,-1000.0,0.00031506,2]
[312302143,1705765849067,-852.18,0.000317,2]
[312302144,1705765849076,-10860.0,0.00031752,5]
[312302145,1705765849086,-334956.928132,0.000318,3]
[312302146,1705765849096,-209.0,0.00031844,7]
[312302147,1705765849105,-5000.0,0.0003189,2]
[312302148,1705765849114,-150.63677426,0.00031947,2]
[312302149,1705765849124,-153.84,0.00031963,2]
[312302150,1705765849133,-298.29879494,0.00032,4]
[312302151,1705765849143,-3796.55759874,0.00032,4]
[312302152,1705765849152,-213.388761,0.00032151,3]
[312302153,1705765849161,-157.68369017,0.00032254,2]
[312302154,1705765849171,-153.0,0.000324,2]
[312302155,1705765849180,-657.81618824,0.000325,2]
[312302156,1705765849190,-288.0,0.00032855,2]
[312302157,1705765849199,-437.30011224,0.00032876,7]
[312302158,1705765849208,-843.81,0.00032876,4]
[312302159,1705765849218,-500.0,0.00032876,7]
[312302160,1705765849227,-430.90772204,0.00032876,7]
[312302161,1705765849237,-200.0,0.00032876,3]
[312302162,1705765849246,-1000.0,0.00032876,2]
[312302163,1705765849255,-153.84,0.00032877,2]
[312302164,1705765849265,-972.28,0.00032877,15]
[312302165,1705765849275,-341.39366023,0.000329,2]
[312302166,1705765849284,-262.0,0.000329,2]
[312302167,1705765849294,-1000.0,0.000329,2]
[312302168,1705765849304,-372.54909786,0.000329,2]
[312302169,1705765849314,-372.54909779,0.000329,2]
[312302170,1705765849323,-372.54909779,0.000329,2]
[312302171,1705765849332,-372.54909779,0.000329,2]
[312302172,1705765849342,-372.54909779,0.000329,2]
[312302173,1705765849351,-372.54909779,0.000329,2]
[312302174,1705765849360,-372.54909779,0.000329,2]
[312302175,1705765849369,-372.54909779,0.000329,2]
[312302176,1705765849379,-372.54909779,0.000329,2]
[312302177,1705765849389,-372.54909779,0.000329,2]
[312302178,1705765849399,-372.54909779,0.000329,2]
[312302179,1705765849408,-372.54909779,0.000329,2]
[312302180,1705765849417,-372.54909779,0.000329,2]
[312302181,1705765849427,-372.54909779,0.000329,2]
[312302182,1705765849436,-372.54909779,0.000329,2]
[312302183,1705765849446,-372.54909779,0.000329,2]
[312302184,1705765849455,-372.54909779,0.000329,2]
[312302185,1705765849464,-372.54909779,0.000329,2]
[312302186,1705765849473,-372.54909779,0.000329,2]
[312302187,1705765849482,-372.54909779,0.000329,2]
[312302188,1705765849491,-712.0,0.00032953,2]